bitfinex/quotes_ETHUSD_20250808
["timestamp","ask_amount","ask_price","bid_price","bid_amount"]
[1754681953881,4.8078,4038.3,4038.2,2.47635084]
[1754681955965,4.8078,4038.3,4038.1,2.47640299]
[1754681956188,0.9468,4038.2,4038.1,2.47640299]
[1754681956381,0.9468,4038.2,4038.0,2.47645307]
[1754681956693,0.9468,4038.1,4038.0,2.47645307]
[1754681958787,0.9468,4038.1,4037.9,2.47651696]
[1754681958993,3.853,4038.0,4037.9,2.47651696]
[1754681959994,4.3225,4038.0,4037.9,2.47651696]
[1754681960493,4.3303,4038.0,4037.9,2.47651696]
[1754681960789,4.7998,4038.0,4037.9,2.47651696]
[1754681961087,4.7998,4038.0,4037.7,2.60063963]
[1754681961088,4.7998,4038.0,4037.8,2.47657592]
[1754681961392,0.9468,4037.9,4037.8,2.47657592]
[1754681961572,0.9468,4037.9,4037.7,2.6006423]
[1754681962294,0.9468,4037.9,4037.8,2.47659616]
[1754681962507,3.853,4038.0,4037.9,2.47653483]
[1754681962799,0.002,4038.3,4038.1,2.47641217]
[1754681962992,0.002,4038.3,4038.2,2.47635084]
[1754681963293,3.853,4038.3,4038.2,2.60035084]
[1754681964175,4.7803,4038.3,4038.2,2.47635084]
[1754681964566,4.7803,4038.3,4038.1,2.47641217]
[1754681964567,4.7803,4038.3,4038.1,2.47639507]
[1754681964764,1.41033,4038.2,4037.8,2.47658307]
[1754681964961,0.9323,4038.1,4037.9,2.47652189]
[1754681965207,3.85,4038.0,4037.9,2.47652189]
[1754681965699,4.7823,4038.0,4037.8,0.001]
[1754681965877,0.9323,4037.9,4037.8,2.47759616]
[1754681966228,0.9323,4037.9,4037.8,0.001]
[1754681966402,0.9323,4037.9,4037.8,2.47759616]
[1754681966695,0.9323,4037.9,4037.8,0.001]
[1754681966913,0.9323,4037.9,4037.8,2.47759616]
[1754681967785,0.4578,4037.9,4037.8,2.47759616]
[1754681968467,3.85,4038.0,4037.9,2.47653483]
[1754681968800,0.002,4038.3,4038.2,2.47635084]
[1754681969000,0.002,4038.7,4038.6,2.47610558]
[1754681971175,0.9343,4038.7,4038.6,2.47610558]
[1754681972108,0.9343,4038.7,4037.8,2.001]
[1754681972279,0.9343,4038.7,4038.4,2.47620168]
[1754681972477,0.9323,4038.6,4038.4,2.47620168]
[1754681972680,0.4578,4038.6,4038.3,2.47627925]
[1754681972881,0.9323,4038.5,4038.3,2.47626187]
[1754681973192,0.002,4038.7,4038.6,2.47610558]
[1754681974992,0.002,4038.7,4038.6,2.93810558]
[1754681976219,0.002,4038.7,4038.5,2.47615411]
[1754681976414,4.3098,4038.6,4037.8,2.463]
[1754681976718,4.7843,4038.6,4037.8,2.001]
[1754681976892,4.7843,4038.6,4038.3,2.47628697]
[1754681977078,4.3265,4038.6,4038.3,2.47628697]
[1754681977280,0.9323,4038.5,4037.9,2.47653483]
[1754681977495,0.9323,4038.5,4038.1,2.47637474]
[1754681977691,3.852,4038.6,4038.1,2.47637474]
[1754681977894,0.9323,4038.5,4038.0,2.47644901]
[1754681978095,0.4578,4038.5,4038.4,2.4762282]
[1754681978496,3.852,4038.6,4038.5,2.47616689]
[1754681979534,3.852,4038.6,4038.4,2.47621328]
[1754681979696,3.852,4038.6,4038.5,2.47616689]
[1754681980435,3.852,4038.6,4038.4,2.47621929]
[1754681980631,3.852,4038.6,4038.5,2.47616689]
[1754681980814,4.3098,4038.6,4038.5,2.47616689]
[1754681981137,4.3098,4038.6,4038.3,0.124]
[1754681981303,4.3098,4038.6,4038.4,2.47617215]
[1754681981817,4.3098,4038.6,4038.5,2.47616689]
[1754681982018,4.3098,4038.6,4038.4,2.4762119]
[1754681982334,0.9323,4038.5,4038.3,0.124]
[1754681982699,0.9323,4038.4,4037.8,4.47757926]
[1754681982900,3.847,4038.3,4038.0,0.124]
[1754681983304,4.3048,4038.3,4038.1,2.47641104]
[1754681984103,3.847,4038.3,4038.0,2.60046109]
[1754681984343,0.9323,4038.2,4038.1,2.47641217]
[1754681985013,3.847,4038.3,4038.2,2.47635084]
[1754681985226,3.846,4038.3,4038.2,2.47635084]
[1754681987042,0.002,4038.7,4038.6,2.47610558]
[1754681987202,3.848,4038.7,4038.6,2.47610558]
[1754681987747,4.7803,4038.7,4038.6,2.47610558]
[1754681988443,4.3058,4038.7,4038.6,2.47610558]
[1754681989345,4.7803,4038.7,4038.6,2.47610558]
[1754681991028,4.3058,4038.7,4038.6,2.47610558]
[1754681992943,0.002,4038.8,4038.6,2.47610558]
[1754681993141,0.002,4038.8,4038.7,2.96280471]
[1754681993344,0.002,4038.8,4038.7,2.47604427]
[1754681995847,0.002,4038.8,4038.7,2.92004427]
[1754681997755,1e-08,4038.8,4038.7,2.92004427]
[1754681999243,1e-08,4039.1,4039.0,2.47586036]
[1754681999746,1e-08,4039.1,4039.0,3.04386036]
[1754682000249,1e-08,4039.2,4039.1,2.47579906]
[1754682000452,0.002,4039.4,4039.1,9.75479906]
[1754682000615,1e-08,4039.7,4039.6,2.47549262]
[1754682000822,1e-08,4040.0,4039.9,2.47530879]
[1754682001021,1e-08,4040.0,4039.9,9.90406187]
[1754682001221,1e-08,4040.0,4039.9,9.87930879]
[1754682003152,1e-08,4040.0,4039.9,5.59930879]
[1754682003852,1e-08,4040.0,4039.9,9.43330879]
[1754682004550,1e-08,4040.0,4039.9,11.43330879]
[1754682009350,1e-08,4040.0,4039.9,7.59930879]
[1754682009665,1e-08,4040.0,4039.9,11.42930879]
[1754682010522,1e-08,4040.0,4039.9,2.124]
[1754682010523,0.47750001,4040.0,4039.9,2.124]
[1754682010757,0.90640001,4040.0,4039.9,2.0]
[1754682010922,0.90640001,4040.0,4039.9,1.5]
[1754682010923,1.24454986,4040.0,4039.9,1.5]
[1754682011128,0.90640001,4040.0,4039.9,1.5]
[1754682013151,0.90640001,4040.0,4039.9,3.97530879]
[1754682013354,1e-08,4040.0,4039.9,3.97530879]
[1754682014270,1e-08,4040.0,4039.9,1.5]
[1754682014271,0.90640001,4040.0,4039.9,1.5]
[1754682014450,0.90640001,4040.0,4039.9,3.97530879]
[1754682018151,0.90640001,4040.0,4039.9,1.5]
[1754682018577,7.21364753,4040.0,4039.9,1.5]
[1754682018749,7.93501228,4040.0,4039.9,1.5]
[1754682018946,5.45976476,4040.0,4039.9,1.5]
[1754682020676,5.58376476,4040.0,4039.9,1.5]
[1754682021776,3.83100001,4040.0,4039.9,3.97530879]
[1754682022475,1e-08,4040.0,4039.9,3.97530879]
[1754682022674,3.83200001,4040.0,4039.9,3.97530879]
[1754682024288,1e-08,4040.0,4039.9,3.97530879]
[1754682028966,1e-08,4040.0,4039.9,1.5]
[1754682028967,0.91140001,4040.0,4039.9,1.5]
[1754682029281,1.38544001,4040.0,4039.9,1.5]
[1754682030081,1e-08,4040.0,4039.9,3.97530879]
[1754682032748,1e-08,4040.0,4039.9,4.88770879]
[1754682032949,1e-08,4040.0,4039.9,3.97530879]
[1754682036280,0.43420001,4040.0,4039.9,3.97530879]
[1754682037354,1e-08,4040.0,4039.9,3.97530879]
[1754682038991,1e-08,4040.0,4039.9,4.09930879]
[1754682042056,0.43420001,4040.0,4039.9,4.09930879]
[1754682042667,4.25620001,4040.0,4039.9,4.09930879]
[1754682044794,3.82200001,4040.0,4039.9,4.09930879]
[1754682046499,1e-08,4040.0,4039.9,4.09930879]
[1754682046816,3.81900001,4040.0,4039.9,4.56140879]
[1754682046963,1e-08,4040.0,4039.9,4.91246187]
[1754682047167,1e-08,4040.0,4039.9,9.34646187]
[1754682047368,1e-08,4040.0,4039.9,21.67943281]
[1754682047880,0.66331591,4042.2,4040.0,0.55]
[1754682048092,3.82,4041.3,4041.2,2.47451252]
[1754682048294,3.82,4041.3,4041.2,2.59851252]
[1754682048825,0.002,4041.3,4041.2,2.59851252]
[1754682048996,0.002,4041.5,4041.4,2.47439006]
[1754682049698,0.002,4041.5,4041.4,2.59839006]
[1754682050266,0.9134,4041.5,4041.4,2.59839006]
[1754682051370,0.9134,4041.5,4040.9,2.47469623]
[1754682051566,0.002,4041.5,4041.1,2.47457375]
[1754682051768,0.9114,4041.4,4041.2,2.47450213]
[1754682051973,0.9114,4041.3,4041.2,2.47450213]
[1754682052412,0.002,4041.5,4041.4,2.47439006]
[1754682052623,0.4362,4041.5,4041.4,2.47439006]
[1754682053122,0.002,4041.5,4041.4,2.47439006]
[1754682054685,0.4731,4041.5,4041.4,2.47439006]
[1754682054934,0.9651,4041.5,4041.4,2.47439006]
[1754682055088,0.9651,4041.5,4041.3,0.124]
[1754682055297,0.9631,4041.4,4041.3,0.124]
[1754682055490,0.9631,4041.4,4041.2,2.47450559]
[1754682055691,0.9631,4041.3,4040.9,0.124]
[1754682055890,4.7801,4041.2,4040.7,2.47477789]
[1754682056128,0.124,4041.0,4040.4,0.124]
[1754682056373,0.124,4041.0,4040.4,2.59899564]
[1754682056493,0.9631,4040.9,4040.4,2.59899564]
[1754682056700,0.9631,4040.8,4040.7,2.47481871]
[1754682058204,0.9631,4040.8,4040.7,2.42481871]
[1754682058406,0.9631,4040.8,4040.6,2.47486025]
[1754682058594,4.2871,4040.7,4040.6,2.47486025]
[1754682058795,4.7791,4040.7,4040.6,2.47486025]
[1754682059831,3.816,4040.7,4040.6,2.47486025]
[1754682062332,0.124,4041.0,4040.9,2.47469623]
[1754682062519,3.813,4041.4,4041.3,2.47445129]
[1754682062722,0.002,4041.5,4041.4,2.47439006]
[1754682062909,0.002,4041.5,4041.4,3.42159006]
[1754682067142,0.002,4041.5,4041.4,2.93569006]
[1754682067519,0.002,4041.5,4041.4,2.47439006]
[1754682068230,0.002,4041.5,4041.4,2.93569006]
[1754682069439,1e-08,4041.5,4041.4,2.96043396]
[1754682069739,1e-08,4041.5,4041.4,3.42159006]
[1754682070812,1e-08,4041.5,4041.4,5.42159006]
[1754682071873,1e-08,4041.5,4041.4,4.93569006]
[1754682072975,1e-08,4041.5,4041.4,4.47439006]
[1754682073343,0.002,4041.9,4041.8,2.47414518]
[1754682073344,1e-08,4041.9,4041.8,2.47414518]
[1754682073581,1e-08,4041.9,4041.8,9.28214518]
[1754682073877,1e-08,4041.9,4041.8,9.74344518]
[1754682074064,1e-08,4041.9,4041.8,9.86744518]
[1754682074841,1e-08,4041.9,4041.8,5.59814518]
[1754682079352,1e-08,4041.9,4041.8,9.90814518]
[1754682084560,0.4647,4042.3,4042.2,2.47390035]
[1754682084857,0.002,4042.3,4042.2,6.28090035]
[1754682085057,0.002,4042.3,4042.2,6.40490035]
[1754682085453,1e-08,4042.3,4042.2,6.40490035]
[1754682085653,1e-08,4042.8,4042.7,2.47359437]
[1754682085884,0.002,4043.2,4043.1,2.47334965]
[1754682086058,0.002,4043.2,4043.1,6.28034965]
[1754682086254,0.002,4043.2,4043.1,2.59734965]
[1754682089020,1e-08,4043.2,4043.1,2.59734965]
[1754682089176,1e-08,4043.2,4043.1,16.68424994]
[1754682089383,1e-08,4043.2,4043.1,20.71391645]
[1754682089698,0.002,4044.0,4043.1,20.71391645]
[1754682089699,0.002,4044.0,4043.9,2.47286035]
[1754682089903,0.4698,4044.4,4044.3,2.47261578]
[1754682089904,0.002,4044.4,4044.3,2.47261578]
[1754682090089,0.9325,4044.4,4044.3,2.47261578]
[1754682090413,0.9325,4044.4,4044.3,2.59661578]
[1754682093995,0.002,4044.4,4044.3,2.59661578]
[1754682094603,0.002,4044.4,4044.3,6.40261578]
[1754682097139,0.002,4044.4,4044.3,6.40161578]
[1754682098034,0.4647,4044.4,4044.3,6.40161578]
[1754682098217,0.4647,4044.4,4044.3,8.40161578]
[1754682098417,0.002,4044.4,4044.3,8.40161578]
[1754682102243,1e-08,4044.4,4044.3,8.40161578]
[1754682103162,1e-08,4044.4,4044.3,8.83421578]
[1754682103929,1e-08,4044.4,4044.3,11.36701578]
[1754682104176,1e-08,4044.4,4044.3,9.88201578]
[1754682104468,0.002,4045.0,4044.3,12.38421578]
[1754682104637,0.002,4045.3,4045.1,2.47212677]
[1754682104961,0.002,4045.3,4045.2,6.27606565]
[1754682105159,0.002,4045.3,4045.2,6.40006565]
[1754682105457,0.4647,4045.3,4045.2,6.40006565]
[1754682105756,0.9325,4045.3,4045.2,2.59606565]
[1754682105956,0.9325,4045.3,4045.2,6.40006565]
[1754682106262,0.9325,4045.3,4045.2,2.59606565]
[1754682108259,0.002,4045.3,4045.2,2.59606565]
[1754682109188,0.4647,4045.3,4045.2,6.40006565]
[1754682109566,0.1232,4046.1,4045.6,2.47182123]
[1754682109769,0.4678,4046.9,4045.6,13.70488501]
[1754682109979,0.4678,4046.9,4046.8,2.47108826]
[1754682110297,4.4678,4046.9,4046.8,2.47108826]
[1754682110671,4.4678,4046.9,4046.8,2.59428826]
[1754682110983,0.4678,4046.9,4046.8,2.59428826]
[1754682111578,0.4678,4047.1,4046.8,0.1232]
[1754682111780,0.9305,4047.0,4046.8,0.1232]
[1754682112003,0.9305,4047.0,4046.9,2.4710272]
[1754682113965,3.804,4047.7,4046.8,2.1232]
[1754682113966,0.4678,4047.5,4046.8,2.1232]
[1754682114294,0.4678,4047.5,4047.4,2.47072194]
[1754682114594,0.9247,4047.5,4047.1,0.1232]
[1754682114793,0.9247,4047.5,4047.2,2.47079304]
[1754682114999,0.9202,4047.4,4047.3,2.47075722]
[1754682115305,1.431892,4047.4,4047.3,2.47075722]
[1754682115701,0.52842869,4047.6,4047.3,2.47075722]
[1754682115901,0.4633,4048.1,4047.9,2.47041675]
[1754682116098,0.3727,4048.2,4048.1,2.4702947]
[1754682116701,0.2495,4048.2,4048.1,2.5934947]
[1754682118098,0.2515,4048.2,4048.1,2.5934947]
[1754682119916,0.2515,4048.2,4048.1,3.0581947]
[1754682120520,0.2515,4048.2,4048.1,2.5934947]
[1754682121311,0.1232,4049.0,4048.9,2.46980661]
[1754682121511,0.4633,4049.6,4049.5,2.46944067]
[1754682121901,0.9202,4049.6,4049.5,2.46944067]
[1754682122126,0.4569,4049.9,4049.8,2.46925774]
[1754682122429,0.9202,4049.9,4049.8,2.46925774]
[1754682122630,2.4685947,4050.9,4049.8,2.46925774]
[1754682122797,3.0,4050.7,4049.3,3.802]
[1754682122992,0.9202,4050.6,4050.5,2.46877831]
[1754682123230,4.7212,4050.6,4050.5,2.46877831]
[1754682124593,0.9202,4050.6,4050.5,2.46877831]
[1754682124797,4.7212,4050.6,4050.5,2.46877831]
[1754682125217,4.7212,4050.6,4049.5,2.93412754]
[1754682125218,4.7212,4050.6,4048.9,0.4647]
[1754682125431,0.9202,4050.5,4050.1,2.46904075]
[1754682125746,0.9202,4050.4,4050.0,2.46908812]
[1754682125949,4.27312,4050.6,4049.8,2.46919813]
[1754682126114,0.9202,4050.3,4050.1,2.46907388]
[1754682126303,0.9202,4050.3,4050.2,2.46901387]
[1754682126636,0.9202,4050.3,4049.2,0.4647]
[1754682126637,4.7212,4050.3,4049.2,0.4647]
[1754682126933,4.2579,4050.3,4050.2,2.46901387]
[1754682127132,0.4633,4050.8,4049.3,4.2619]
[1754682127319,3.801,4050.7,4050.6,2.46877005]
[1754682127525,4.7212,4050.7,4050.6,2.46877005]
[1754682127925,0.9202,4050.7,4050.6,2.46877005]
[1754682128505,4.7212,4050.7,4050.6,2.46877005]
[1754682128735,4.7202,4050.7,4050.6,2.46877005]
[1754682129334,5.19222,4050.7,4049.2,4.2647]
[1754682129636,0.9202,4050.6,4049.9,2.46918448]
[1754682129814,4.27202,4050.7,4050.1,2.46902593]
[1754682130008,0.9202,4050.5,4049.9,2.46918119]
[1754682130220,3.8,4050.4,4048.8,0.4609]
[1754682130400,3.8,4050.4,4049.4,0.4647]
[1754682130602,3.8,4050.4,4050.3,2.46895291]
[1754682130836,4.7202,4050.4,4050.3,2.46895291]
[1754682131548,4.8434,4050.4,4050.3,2.46895291]
[1754682131746,4.3865,4050.4,4050.3,2.46895291]
[1754682132726,0.1232,4050.4,4050.3,2.46895291]
[1754682132949,0.5250451,4051.1,4050.9,2.46858722]
[1754682133273,0.9202,4051.4,4051.3,2.46834349]
[1754682133552,0.9202,4051.4,4050.0,0.4609]
[1754682133553,0.4633,4051.0,4050.9,2.46858722]
[1754682133936,0.9202,4051.0,4050.9,2.46858722]
[1754682134137,0.9202,4051.0,4050.6,2.5919691]
[1754682134329,4.7202,4050.9,4050.7,2.46870911]
[1754682134635,0.9202,4050.8,4050.6,0.1232]
[1754682134853,0.4633,4050.8,4050.7,2.46865466]
[1754682135041,0.1232,4051.2,4050.9,2.46858722]
[1754682135042,0.525298,4051.0,4050.9,2.46858722]
[1754682135367,4.32448475,4051.0,4050.9,2.46858722]
[1754682135741,4.32444788,4051.0,4050.9,2.46858722]
[1754682135936,3.799,4051.0,4050.9,2.46858722]
[1754682136272,4.32444773,4051.0,4050.9,2.46858722]
[1754682136972,4.78774773,4051.0,4050.9,2.46858722]
[1754682137133,5.24464773,4051.0,4050.4,0.1232]
[1754682137465,0.1232,4050.8,4050.5,2.46881982]
[1754682137665,0.4633,4050.7,4050.6,2.46876337]
[1754682137882,0.1232,4050.8,4050.7,2.46870911]
[1754682138165,0.64918886,4050.8,4050.7,2.46870911]
[1754682138633,0.64918886,4050.8,4050.4,2.46883614]
[1754682138634,1.11248886,4050.8,4050.6,2.46874932]
[1754682138835,1.11248886,4050.8,4050.3,2.46890291]
[1754682138836,1.44618886,4050.7,4050.5,2.46881428]
[1754682139033,5.24518886,4050.6,4049.6,2.46937116]
[1754682139370,5.24518886,4050.6,4050.4,2.46889196]
[1754682139371,1.56938886,4050.5,4050.4,2.46889196]
[1754682139736,1.56938886,4050.5,4050.2,2.4689835]
[1754682139937,0.98928886,4050.4,4049.9,0.1232]
[1754682140160,0.5801,4050.5,4050.2,2.46901387]
[1754682140161,0.52598886,4050.3,4050.2,2.46901387]
[1754682142548,3.799,4050.6,4050.5,2.468831]
[1754682142746,0.002,4051.0,4050.9,2.46858722]
[1754682143152,0.002,4051.0,4050.9,3.05648722]
[1754682143544,0.002,4051.4,4051.3,2.46834349]
[1754682143951,0.4653,4051.4,4051.3,2.46834349]
[1754682144147,4.2643,4051.4,4051.3,2.59154349]
[1754682144452,4.2643,4051.4,4050.3,3.799]
[1754682144453,5.25093,4051.4,4051.2,2.46839756]
[1754682144779,3.9242,4051.4,4051.3,2.46834349]
[1754682146782,5.37151591,4051.4,4051.3,2.46834349]
[1754682146978,5.49471591,4051.4,4051.1,2.4684241]
[1754682147274,1.57051591,4051.3,4050.7,0.1232]
[1754682147474,1.13371591,4051.3,4051.2,2.46840442]
[1754682148388,0.66331591,4051.3,4051.2,2.46840442]
[1754682148590,4.46131591,4051.3,4051.2,2.46840442]
[1754682149267,4.2684,4051.3,4051.2,2.46840442]
[1754682149467,4.93081204,4051.3,4051.2,2.46840442]
[1754682149667,4.46041204,4051.3,4051.2,2.46840442]
[1754682149974,3.798,4051.3,4051.2,3.05670442]
[1754682150552,0.002,4051.4,4051.3,2.46834349]
[1754682150781,0.002,4051.4,4051.3,3.42644349]
[1754682150984,0.002,4051.4,4051.3,2.93344349]
[1754682152179,0.002,4051.4,4051.3,2.46834349]
[1754682152385,3.8,4051.4,4051.3,2.46834349]
[1754682153484,0.002,4051.4,4051.3,2.93344349]
[1754682154687,0.53245127,4051.4,4051.3,4.93344349]
[1754682154970,0.002,4051.4,4051.3,4.93344349]
[1754682155491,0.002,4051.4,4051.3,5.42644349]
[1754682155668,0.002,4051.4,4051.3,9.22444349]
[1754682155870,0.002,4051.4,4051.3,8.73144349]
[1754682156292,0.002,4051.4,4051.3,9.39773389]
[1754682156463,0.002,4051.4,4051.3,8.73144349]
[1754682157982,0.002,4051.4,4051.3,4.46834349]
[1754682158401,0.002,4051.4,4051.3,4.93344349]
[1754682159714,0.002,4051.4,4051.3,4.46834349]
[1754682160072,0.002,4051.4,4051.3,4.93344349]
[1754682160272,0.002,4051.4,4051.3,8.73044349]
[1754682160693,1e-08,4051.5,4051.4,2.46828256]
[1754682160882,0.2495,4051.9,4051.8,2.46803889]
[1754682160883,1e-08,4051.9,4051.8,2.46803889]
[1754682161199,1e-08,4051.9,4051.8,7.22313889]
[1754682161507,1e-08,4051.9,4051.8,7.34633889]
[1754682162096,1e-08,4051.9,4051.8,10.22313889]
[1754682162297,1e-08,4051.9,4051.8,10.34633889]
[1754682162497,1e-08,4051.9,4051.8,5.59123889]
[1754682162817,1e-08,4051.9,4051.8,6.38823889]
[1754682163020,1e-08,4051.9,4051.8,6.39023889]
[1754682163816,1e-08,4051.9,4051.8,6.73213889]
[1754682164023,1e-08,4051.9,4051.8,6.85533889]
[1754682164730,1e-08,4051.9,4051.8,2.59123889]
[1754682165031,1e-08,4051.9,4051.8,2.46803889]
[1754682165032,0.90720001,4051.9,4051.8,2.46803889]
[1754682166519,1e-08,4051.9,4051.8,2.46803889]
[1754682166722,1e-08,4051.9,4051.8,2.59123889]
[1754682166936,0.47040001,4051.9,4051.8,2.46803889]
[1754682167093,1e-08,4051.9,4051.8,2.46803889]
[1754682167520,1e-08,4051.9,4051.8,2.59123889]
[1754682168218,0.90720001,4051.9,4051.8,2.46803889]
[1754682168609,0.47040001,4051.9,4051.8,2.46803889]
[1754682168795,1e-08,4051.9,4051.8,2.46803889]
[1754682170826,1e-08,4051.9,4051.8,2.93313889]
[1754682171329,1e-08,4051.9,4051.8,3.05633889]
[1754682171530,1e-08,4051.9,4051.8,2.59123889]
[1754682172400,1e-08,4051.9,4051.8,6.40323889]
[1754682173697,1e-08,4051.9,4051.8,6.86833889]
[1754682177366,1e-08,4051.9,4051.8,2.59123889]
[1754682177527,0.48600001,4051.9,4051.8,6.40223889]
[1754682178028,1e-08,4051.9,4051.8,6.40223889]
[1754682179155,1e-08,4051.9,4051.8,2.46803889]
[1754682179358,0.94640001,4051.9,4051.8,2.46803889]
[1754682180026,1e-08,4051.9,4051.8,2.46803889]
[1754682181058,0.48600001,4051.9,4051.8,2.46803889]
[1754682181274,1e-08,4051.9,4051.8,6.72883889]
[1754682181825,0.486,4052.7,4051.8,6.72883889]
[1754682181826,0.43600001,4052.7,4052.6,2.46755169]
[1754682182026,0.89640001,4052.7,4052.6,2.46755169]
[1754682183226,0.89640001,4052.7,4051.2,3.0]
[1754682183427,0.4604,4052.6,4052.5,2.46760866]
[1754682183829,0.4604,4052.6,4051.6,3.818]
[1754682183830,0.9464,4052.6,4052.2,2.46775511]
[1754682184026,0.9464,4052.5,4052.3,2.46772572]
[1754682184288,0.002,4052.8,4052.2,2.46777754]
[1754682184490,0.9464,4052.4,4052.3,2.46767489]
[1754682185257,0.9464,4052.4,4051.8,2.46800243]
[1754682185573,0.9464,4052.3,4051.9,2.46797677]
[1754682185774,0.9464,4052.2,4051.1,3.816]
[1754682185968,3.19079239,4052.4,4051.7,2.46807666]
[1754682186168,0.9464,4052.1,4051.8,2.4680153]
[1754682186381,0.72310213,4052.4,4051.8,2.4680153]
[1754682186565,0.72310213,4052.4,4051.6,2.46816072]
[1754682186566,0.9464,4052.0,4051.9,2.46797798]
[1754682187204,0.9464,4052.0,4051.8,2.46801767]
[1754682187495,0.9464,4051.9,4051.8,2.46800633]
[1754682187671,0.9464,4051.9,4051.0,6.28450949]
[1754682188202,0.9464,4051.9,4051.8,2.46803889]
[1754682192197,0.9464,4051.9,4051.8,4.46803889]
[1754682192931,3.9382,4052.0,4051.9,2.46797798]
[1754682193509,4.4242,4052.0,4051.9,2.46797798]
[1754682193996,4.8846,4052.0,4051.9,2.46797798]
[1754682195420,4.4242,4052.0,4051.9,2.46797798]
[1754682195586,4.8846,4052.0,4051.9,2.46797798]
[1754682198324,14.93929795,4052.0,4051.8,2.0]
[1754682198542,4.4964,4051.9,4051.8,2.0]
[1754682198892,6.96437798,4051.9,4051.8,2.0]
[1754682199094,7.49487336,4051.9,4051.8,2.0]
[1754682199326,7.45617843,4051.9,4051.8,2.0]
[1754682199529,9.92415641,4051.9,4051.8,2.0]
[1754682199999,3.01828256,4051.4,4051.3,2.001]
[1754682200325,18.13910272,4051.4,4051.3,2.001]
[1754682200538,9.40877414,4051.4,4051.3,2.001]
[1754682200703,3.809,4051.4,4051.3,2.001]
[1754682200889,3.809,4051.4,4051.3,4.46934349]
[1754682204206,3.809,4051.4,4051.3,2.001]
[1754682204207,4.284,4051.4,4051.3,2.001]
[1754682204536,4.7189,4051.4,4051.3,2.001]
[1754682204940,4.7189,4051.4,4051.3,4.46934349]
[1754682205331,3.809,4051.4,4051.3,4.46934349]
[1754682206206,4.284,4051.4,4051.3,2.001]
[1754682206414,9.13067027,4051.4,4051.3,2.001]
[1754682207161,9.68067027,4051.4,4051.3,2.001]
[1754682207367,12.14895283,4051.4,4051.3,2.001]
[1754682207544,16.14895283,4051.4,4051.3,2.001]
[1754682208584,13.80387027,4051.4,4051.3,2.001]
[1754682209446,16.27215283,4051.4,4051.3,2.001]
[1754682209970,13.80387027,4051.4,4051.3,2.001]
[1754682210275,16.27215283,4051.4,4051.3,2.001]
[1754682210462,13.80387027,4051.4,4051.3,2.001]
[1754682211673,16.27215283,4051.4,4051.3,2.001]
[1754682211973,13.80387027,4051.4,4051.3,2.001]
[1754682212139,16.27215283,4051.4,4051.3,2.001]
[1754682221291,16.80167182,4051.4,4051.3,2.001]
[1754682221792,3.01852628,4051.0,4050.9,0.001]
[1754682222026,19.775429,4051.0,4050.9,0.001]
[1754682222238,21.21484662,4051.0,4050.9,0.001]
[1754682222901,25.21484662,4051.0,4050.9,0.001]
[1754682223289,8.20271762,4051.0,4050.9,0.001]
[1754682223533,7.9232,4051.0,4050.9,0.001]
[1754682223692,1.41177027,4051.4,4050.9,1.14546603]
[1754682223693,3.802,4051.2,4050.9,1.14546603]
[1754682224036,0.1232,4051.4,4051.3,2.46834349]
[1754682224338,4.1232,4051.4,4051.3,3.36584349]
[1754682224629,3.9252,4051.4,4051.3,3.36584349]
[1754682224808,3.9252,4051.4,4051.3,0.8975]
[1754682225698,3.9252,4051.4,4051.3,0.4289]
[1754682225886,3.9252,4051.4,4051.3,2.89724349]
[1754682227320,17.30890272,4051.4,4050.9,0.001]
[1754682227519,15.852229,4051.0,4050.9,0.001]
[1754682227720,19.655229,4051.0,4050.9,0.001]
[1754682228021,20.565129,4051.0,4050.9,0.001]
[1754682228208,22.86848234,4051.0,4050.9,0.001]
[1754682228398,23.39886883,4051.0,4050.9,0.001]
[1754682229528,27.39886883,4051.0,4050.9,0.001]
[1754682230621,26.48896883,4051.0,4050.9,0.001]
[1754682231623,22.48896883,4051.0,4050.9,0.001]
[1754682231923,22.96396883,4051.0,4050.9,0.001]
[1754682232929,23.39886883,4051.0,4050.9,0.001]
[1754682233625,22.48896883,4051.0,4050.9,0.001]
[1754682234126,7.351,4051.0,4050.9,0.001]
[1754682234329,7.351,4051.0,4050.9,0.4684]
[1754682234496,19.653229,4051.0,4050.9,0.001]
[1754682234826,23.653229,4051.0,4050.9,0.001]
[1754682235031,21.18470272,4051.0,4050.9,0.001]
[1754682237311,25.79059186,4051.0,4050.9,0.001]
[1754682237513,23.44526558,4051.0,4050.9,0.001]
[1754682238343,23.93696558,4051.0,4050.9,0.001]
[1754682238543,4.53038852,4051.0,4050.9,0.001]
[1754682238744,10.9242,4051.0,4050.9,0.001]
[1754682238951,6.9242,4051.0,4050.9,0.001]
[1754682239150,6.9242,4051.0,4050.9,0.4684]
[1754682239719,6.9242,4051.0,4050.9,0.001]
[1754682239916,11.86535916,4051.0,4050.9,0.001]
[1754682240242,13.34016839,4051.0,4050.9,0.001]
[1754682240422,17.34016839,4051.0,4050.9,0.001]
[1754682240615,3.01877005,4050.6,4050.5,1.001]
[1754682240838,19.77667277,4050.6,4050.5,1.001]
[1754682241152,23.6234996,4050.6,4050.5,1.001]
[1754682241549,27.6234996,4050.6,4050.5,1.001]
[1754682244234,6.018831,4050.5,4050.4,0.001]
[1754682244444,10.54914023,4050.5,4050.4,0.001]
[1754682244651,11.49364023,4050.5,4050.4,0.001]
[1754682244826,14.04893032,4050.5,4050.4,0.001]
[1754682245157,14.04893032,4050.5,4048.8,0.4674]
[1754682245158,3.55,4050.2,4048.8,0.4674]
[1754682245362,2.46937969,4049.6,4048.3,0.4674]
[1754682245530,0.1232,4048.6,4048.3,0.4674]
[1754682245729,3.804,4048.5,4048.3,0.4674]
[1754682245929,3.804,4048.5,4048.4,0.4674]
[1754682246434,3.804,4048.5,4048.1,2.47128754]
[1754682246640,3.804,4048.5,4048.2,0.4674]